fUST/lending_fUST_20250716
["ID","MTS","AMOUNT","RATE_DAILY","PERIOD"]
[372398292,1752623445103,-651.03362321,0.00025299,10]
[372398294,1752623445112,-2000.0,0.000253,2]
[372398295,1752623445121,-2000.0,0.000253,2]
[372398297,1752623445130,-887.7,0.000253,31]
[372398299,1752623445139,-887.7,0.000253,31]
[372398301,1752623445149,-887.7,0.000253,31]
[372398303,1752623445158,-887.7,0.000253,31]
[372398305,1752623445167,-887.7,0.000253,31]
[372398307,1752623445176,-887.7,0.000253,31]
[372398309,1752623445185,-887.7,0.000253,31]
[372398311,1752623445194,-887.7,0.000253,31]
[372398313,1752623445204,-887.7,0.000253,31]
[372398315,1752623445213,-887.7,0.000253,31]
[372398317,1752623445223,-887.7,0.000253,31]
[372398319,1752623445231,-887.7,0.000253,31]
[372398321,1752623445240,-887.7,0.000253,31]
[372398323,1752623445251,-887.7,0.000253,31]
[372398325,1752623445260,-887.7,0.000253,31]
[372398327,1752623445269,-887.7,0.000253,31]
[372398329,1752623445278,-154.002659,0.000253,31]
[372398331,1752623445287,-1401.94,0.000253,7]
[372398333,1752623445297,-520.84375,0.000253,10]
[372398335,1752623445305,-6015.09,0.000253,7]
[372398337,1752623445314,-801.57209986,0.00025303,2]
[372398339,1752623445323,-500.0,0.00025309,9]
[372398341,1752623445332,-10048.04237295,0.00025312,7]
[372398343,1752623445342,-200.29203775,0.00025321,2]
[372398345,1752623445350,-2986.77955714,0.00025354,2]
[372398347,1752623445360,-500.0,0.00025359,10]
[372398349,1752623445369,-500.0,0.00025359,10]
[372398350,1752623445378,-608.0,0.0002536,2]
[372398352,1752623445387,-500.0,0.00025362,9]
[372398355,1752623445397,-500.0,0.00025399,10]
[372398356,1752623445406,-500.0,0.00025399,10]
[372398358,1752623445415,-207.0,0.000254,2]
[372398360,1752623445425,-2000.0,0.000254,2]
[372398362,1752623445433,-2000.0,0.000254,2]
[372398365,1752623445443,-636.0,0.000254,7]
[372398376,1752623445539,-1529.224969,0.000254,5]
[372398378,1752623445549,-500.0,0.00025411,10]
[372398380,1752623445558,-2986.77955714,0.00025412,2]
[372398382,1752623445567,-500.0,0.00025415,10]
[372398384,1752623445576,-500.0,0.00025416,10]
[372398386,1752623445585,-500.0,0.00025416,10]
[372398388,1752623445594,-500.0,0.00025416,10]
[372398390,1752623445603,-500.0,0.00025416,10]
[372398391,1752623445612,-500.0,0.00025419,10]
[372398393,1752623445621,-500.0,0.00025419,10]
[372398395,1752623445631,-500.0,0.0002542,10]
[372398398,1752623445640,-500.0,0.0002542,10]
[372398399,1752623445650,-500.0,0.00025421,10]
[372398402,1752623445660,-500.0,0.00025421,10]
[372398404,1752623445670,-500.0,0.00025421,10]
[372398406,1752623445679,-500.0,0.00025422,10]
[372398408,1752623445689,-500.0,0.00025427,10]
[372398410,1752623445698,-500.0,0.00025428,10]
[372398412,1752623445707,-500.0,0.00025429,10]
[372398414,1752623445717,-154.002659,0.0002543,10]
[372398416,1752623445727,-150.943627,0.0002543,10]
[372398418,1752623445737,-500.0,0.00025439,10]
[372398420,1752623445746,-154.002659,0.00025456,2]
[372398422,1752623445755,-1000.0,0.00025457,2]
[372398424,1752623445764,-231.28369723,0.00025461,2]
[372398426,1752623445773,-879.0,0.00025461,2]
[372398428,1752623445783,-900.0,0.00025469,3]
[372398430,1752623445793,-16272.12945794,0.0002547,2]
[372398432,1752623445802,-1270.82,0.00025478,2]
[372398434,1752623445811,-375.47,0.00025479,2]
[372398436,1752623445821,-822.29,0.00025479,2]
[372398438,1752623445831,-1788.06629159,0.00025479,2]
[372398440,1752623445840,-507.13615825,0.00025479,2]
[372398442,1752623445850,-571.13586159,0.00025479,2]
[372398444,1752623445861,-970.38,0.00025479,2]
[372398446,1752623445871,-500.0,0.00025482,2]
[372398448,1752623445880,-1000.0,0.000255,2]
[372398450,1752623445890,-150.0,0.000255,2]
[372398452,1752623445899,-151.0,0.00025502,7]
[372398454,1752623445908,-151.0,0.00025502,7]
[372398456,1752623445918,-151.0,0.00025502,7]
[372398458,1752623445927,-151.0,0.00025502,7]
[372398460,1752623445938,-151.0,0.00025502,7]
[372398462,1752623445947,-151.0,0.00025502,7]
[372398464,1752623445957,-151.0,0.00025502,7]
[372398466,1752623445968,-151.0,0.00025502,7]
[372398468,1752623445977,-151.0,0.00025502,7]
[372398470,1752623445990,-290.191259,0.00025502,7]
[372398472,1752623446000,-151.0,0.00025502,7]
[372398474,1752623446010,-151.0,0.00025502,7]
[372398476,1752623446020,-151.0,0.00025502,7]
[372398478,1752623446031,-151.0,0.00025502,7]
[372398480,1752623446040,-151.0,0.00025502,7]
[372398482,1752623446050,-151.0,0.00025502,7]
[372398484,1752623446061,-151.0,0.00025502,7]
[372398487,1752623446070,-151.0,0.00025502,7]
[372398489,1752623446079,-151.0,0.00025502,7]
[372398490,1752623446089,-151.0,0.00025502,7]
[372398492,1752623446099,-151.0,0.00025502,7]
[372398494,1752623446108,-252.920952,0.00025502,7]
[372398497,1752623446118,-151.0,0.00025502,7]
[372398499,1752623446127,-151.905852,0.00025502,7]
[372398501,1752623446137,-151.0,0.00025502,7]
[372398502,1752623446146,-151.0,0.00025502,7]
[372398505,1752623446156,-151.0,0.00025502,3]
[372398507,1752623446167,-151.0,0.00025502,3]
[372398509,1752623446176,-151.0,0.00025502,7]
[372398510,1752623446185,-151.0,0.00025502,7]
[372398512,1752623446195,-183.288372,0.00025502,7]
[372398515,1752623446204,-429.0948676,0.00025507,2]
[372398517,1752623446213,-429.0948676,0.00025507,2]
[372398519,1752623446224,-429.0948676,0.00025507,2]
[372398520,1752623446234,-1280.2759197,0.00025507,2]
[372398522,1752623446243,-159.7039591,0.00025507,2]
[372398524,1752623446253,-159.7039591,0.00025507,2]
[372398526,1752623446262,-159.7039591,0.00025507,2]
[372398528,1752623446272,-159.7039591,0.00025507,2]
[372398530,1752623446281,-159.7039591,0.00025507,2]
[372398532,1752623446290,-159.7039591,0.00025507,2]
[372398534,1752623446299,-159.7039591,0.00025507,2]
[372398537,1752623446309,-159.7039591,0.00025507,2]
[372398539,1752623446318,-159.7039591,0.00025507,2]
[372398541,1752623446328,-159.7039591,0.00025507,2]
[372398543,1752623446337,-245.8275495,0.00025507,2]
[372398545,1752623446346,-153.0,0.00025507,2]
[372398547,1752623446356,-153.0,0.00025507,2]
[372398548,1752623446365,-153.0,0.00025507,2]
[372398550,1752623446375,-153.0,0.00025507,2]
[372398553,1752623446384,-602.0202572,0.00025507,2]
[372398554,1752623446394,-151.0,0.00025507,7]
[372398556,1752623446403,-74265.79328827,0.0002551,20]
[372398559,1752623446416,-10860.4437285,0.0002551,20]
[372398561,1752623446427,-4011.1,0.0002551,20]
[372398569,1752623446496,-1012.75903042,0.0002551,20]
[372398571,1752623446507,-1380.0,0.0002551,20]
[372398603,1752623446810,-460.0,0.00019178,2]
[372398606,1752623446823,-680.00154028,0.00024517,2]
[372398608,1752623446835,-859.95109972,0.0002551,20]
[372398611,1752623446851,-1156.34956739,0.0002551,20]
[372398613,1752623446866,-2578.53893933,0.0002551,20]
[372398617,1752623446889,-460.0,0.00019452,2]
[372398619,1752623446901,-1000.1979482,0.0002551,20]
[372398621,1752623446914,-820.29,0.0002551,20]
[372399086,1752624249187,247.112714,0.00013699,2]
[372399088,1752624343095,-300.0,0.00019177,2]
[372399089,1752624343115,-300.0,0.00019177,2]
[372399090,1752624343135,-300.0,0.00019177,2]
[372399091,1752624343155,-300.0,0.00019177,2]
[372399092,1752624343177,-1200.0,0.00019177,2]
[372399093,1752624343198,-500.0,0.00019178,2]
[372399094,1752624343220,-224.98330538,0.00019178,2]
[372399095,1752624348076,-275.01669462,0.00019178,2]
[372399096,1752624348098,-500.0,0.00019178,2]
[372399097,1752624348120,-500.0,0.00019178,2]
[372399098,1752624348141,-489.53835105,0.00019178,2]
[372399100,1752624427093,-10.46164895,0.00019178,2]
[372399101,1752624427114,-1200.0,0.00019447,2]
[372399102,1752624427138,-460.0,0.00019448,2]
[372399103,1752624427162,-460.0,0.00019448,2]
[372399104,1752624427185,-233.99613587,0.00019448,2]
[372399105,1752624427208,-460.0,0.00019448,2]
[372399106,1752624427232,-460.0,0.00019449,2]
[372399107,1752624427255,-460.0,0.00019449,2]
[372399108,1752624427277,-300.0,0.00019625,2]
[372399109,1752624427430,-585.73715895,0.00019626,2]
[372399110,1752624427454,-460.0,0.00019722,2]
[372399111,1752624427477,-460.0,0.00019722,2]
[372399112,1752624427499,-460.0,0.00019722,2]
[372399113,1752624427522,-460.0,0.00019723,2]
[372399114,1752624427544,-460.0,0.00019723,2]
[372399115,1752624427566,-460.0,0.00019996,2]
[372399116,1752624427590,-460.0,0.00019996,2]
[372399117,1752624427615,-460.0,0.00019996,2]
[372399118,1752624427640,-350.95813608,0.00019997,2]
[372399119,1752624427662,-117.66857188,0.00019997,2]
[372399120,1752624436083,-1258.14098859,0.000189,2]
[372399121,1752624439080,-965.40632764,0.000189,2]
[372399122,1752624439102,-24.05064436,0.00019997,2]
[372399123,1752624440104,-318.28078376,0.00019997,2]
[372399124,1752624440128,-606.88434183,0.00020162,2]
[372399125,1752624440151,-247.112714,0.00020187,2]
[372399126,1752624440173,-616.27494362,0.00020262,2]
[372399127,1752624440195,-500.0,0.00020262,2]
[372399128,1752624440218,-500.0,0.00020262,2]
[372399129,1752624440239,-500.0,0.00020262,2]
[372399130,1752624440261,-500.0,0.00020262,2]
[372399131,1752624440285,-500.0,0.00020262,2]
[372399132,1752624440305,-500.0,0.00020262,2]
[372399133,1752624440329,-500.0,0.00020262,2]
[372399134,1752624440351,-500.0,0.00020262,2]
[372399135,1752624440376,-500.0,0.00020262,2]
[372399136,1752624440405,-500.0,0.00020262,2]
[372399137,1752624440429,-500.0,0.00020262,2]
[372399138,1752624440453,-500.0,0.00020262,2]
[372399139,1752624440475,-500.0,0.00020262,2]
[372399140,1752624440499,-513.96808216,0.00020262,2]
[372399141,1752624440521,-500.0,0.00020262,2]
[372399142,1752624440543,-500.0,0.00020262,2]
[372399143,1752624440565,-274.44071812,0.00020262,2]
[372399144,1752624440587,-317.81876034,0.00020262,2]
[372399190,1752624632219,-460.0,0.00019449,2]
[372399192,1752624632228,-189.75790062,0.00019449,2]
[372399203,1752624632324,-270.24209938,0.00019449,2]
[372399205,1752624632334,-23.85790062,0.00019449,2]
[372399263,1752624638260,-436.14209938,0.00019449,2]
[372399264,1752624638270,-180.786741,0.00019635,2]
[372399265,1752624638281,-268.0,0.00019722,2]
[372399266,1752624638292,-460.0,0.00019723,2]
[372399267,1752624638302,-506.36,0.00019723,2]
[372399268,1752624638312,-460.0,0.00019723,2]
[372399269,1752624638321,-300.0,0.00019996,2]
[372399270,1752624638331,-460.0,0.00019997,2]
[372399271,1752624638340,-460.0,0.00019997,2]
[372399272,1752624638360,-460.0,0.00020261,2]
[372399273,1752624638374,-460.0,0.00020264,2]
[372399274,1752624638385,-495.3,0.00020264,2]
[372399275,1752624638394,-460.0,0.00020264,2]
[372399276,1752624638404,-460.0,0.00020264,2]
[372399277,1752624638415,-460.0,0.00020264,2]
[372399278,1752624638424,-460.0,0.00020266,2]
[372399279,1752624638434,-469.14,0.00020266,2]
[372399280,1752624638443,-460.0,0.00020271,2]
[372399281,1752624638454,-460.0,0.00020271,2]
[372399282,1752624638464,-460.0,0.00020271,2]
[372399283,1752624638475,-429.98,0.00020535,2]
[372399284,1752624638485,-460.0,0.00020538,2]
[372399285,1752624638495,-495.3,0.00020538,2]
[372399286,1752624638504,-460.0,0.00020538,2]
[372399287,1752624638514,-460.0,0.00020538,2]
[372399288,1752624638525,-460.0,0.0002054,2]
[372399289,1752624638535,-460.0,0.00020545,2]
[372399290,1752624638545,-460.0,0.00020545,2]
[372399291,1752624638555,-460.0,0.00020545,2]
[372399292,1752624638564,-230.76969291,0.00020747,2]
[372399293,1752624638573,-520.84375,0.00020747,2]
[372399294,1752624638582,-460.0,0.00020812,2]
[372399295,1752624638592,-495.3,0.00020812,2]
[372399296,1752624638602,-460.0,0.00020812,2]
[372399297,1752624638611,-460.0,0.00020812,2]
[372399298,1752624638621,-460.0,0.00020814,2]
[372399299,1752624638631,-500.0,0.00020818,2]
[372399300,1752624638642,-500.0,0.00020818,2]
[372399301,1752624638651,-500.0,0.00020818,2]
[372399302,1752624638661,-500.0,0.00020818,2]
[372399303,1752624638671,-160.92207417,0.00020818,2]
[372399304,1752624638680,-500.0,0.00020818,2]
[372399305,1752624638690,-500.0,0.00020818,2]
[372399306,1752624638700,-500.0,0.00020818,2]
[372399307,1752624638710,-500.0,0.00020818,2]
[372399308,1752624638720,-500.0,0.00020818,2]
[372399309,1752624638729,-626.23576716,0.00020818,2]
[372399310,1752624638739,-427.64281296,0.00020818,2]
[372399311,1752624638748,-500.0,0.00020818,2]
[372399312,1752624638758,-500.0,0.00020818,2]
[372399313,1752624638768,-500.0,0.00020818,2]
[372399314,1752624638779,-500.0,0.00020818,2]
[372399315,1752624638789,-500.0,0.00020818,2]
[372399316,1752624638799,-500.0,0.00020818,2]
[372399317,1752624638810,-500.0,0.00020818,2]
[372399318,1752624638819,-170.77415707,0.00020818,2]
[372399319,1752624638829,-500.0,0.00020818,2]
[372399320,1752624638838,-500.0,0.00020818,2]
[372399321,1752624638848,-500.0,0.00020818,2]
[372399322,1752624638858,-500.0,0.00020818,2]
[372399323,1752624638867,-500.0,0.00020818,2]
[372399324,1752624638877,-500.0,0.00020818,2]
[372399325,1752624638887,-500.0,0.00020818,2]
[372399326,1752624638896,-500.0,0.00020818,2]
[372399327,1752624638906,-500.0,0.00020818,2]
[372399328,1752624638915,-500.0,0.00020818,2]
[372399329,1752624638925,-500.0,0.00020818,2]
[372399330,1752624638935,-460.0,0.00020819,2]
[372399331,1752624638944,-460.0,0.00020819,2]
[372399332,1752624638954,-460.0,0.00020819,2]
[372399333,1752624638965,-209.152,0.0002092,2]
[372399334,1752624638978,-460.0,0.00021086,2]
[372399335,1752624638989,-495.3,0.00021086,2]
[372399336,1752624638999,-460.0,0.00021086,2]
[372399337,1752624639009,-460.0,0.00021086,2]
[372399338,1752624639019,-307.93,0.00021088,2]
[372399339,1752624639031,-460.0,0.00021093,2]
[372399340,1752624639041,-324.18,0.00021093,2]
[372399341,1752624639051,-304.9814896,0.00021093,2]
[372399342,1752624639061,-500.0,0.00021133,2]
[372399343,1752624639071,-594.0,0.00021188,2]
[372399344,1752624639081,-460.0,0.0002136,2]
[372399345,1752624639091,-495.3,0.0002136,2]
[372399346,1752624639101,-460.0,0.0002136,2]
[372399347,1752624639110,-460.0,0.0002136,2]
[372399348,1752624639120,-536.6,0.00021367,2]
[372399349,1752624639130,-460.0,0.00021634,2]
[372399350,1752624639140,-495.3,0.00021634,2]
[372399351,1752624639150,-460.0,0.00021634,2]
[372399352,1752624639160,-471.62,0.00021634,2]
[372399353,1752624639170,-1000.0,0.00021681,2]
[372399354,1752624639180,-500.0,0.00021686,2]
[372399355,1752624639189,-420.0,0.00021774,2]
[372399356,1752624639199,-460.0,0.00021908,2]
[372399357,1752624639209,-495.3,0.00021908,2]
[372399358,1752624639219,-460.0,0.00021908,2]
[372399359,1752624639229,-460.0,0.00022182,2]
[372399360,1752624639239,-495.3,0.00022182,2]
[372399361,1752624639248,-553.49,0.00022182,2]
[372399362,1752624639258,-1500.0,0.00022229,2]
[372399363,1752624639268,-460.0,0.00022456,2]
[372399364,1752624639277,-495.3,0.00022456,2]
[372399365,1752624639287,-460.0,0.0002273,2]
[372399366,1752624639296,-495.3,0.0002273,2]
[372399367,1752624639306,-500.0,0.00022777,2]
[372399368,1752624639316,-3906.152434,0.000229,2]
[372399369,1752624639325,-207.4,0.00022939,2]
[372399370,1752624639335,-175.957,0.00022967,2]
[372399371,1752624639345,-20002.29742101,0.00023003,2]
[372399372,1752624639355,-460.0,0.00023004,2]
[372399373,1752624639364,-495.3,0.00023004,2]
[372399374,1752624639378,-2054.92,0.00023103,2]
[372399375,1752624639386,-460.0,0.00023278,2]
[372399376,1752624639395,-495.3,0.00023278,2]
[372399377,1752624639405,-174.82,0.00023552,2]
[372399378,1752624639415,-495.3,0.00023552,2]
[372399379,1752624639425,-231.27,0.00023561,2]
[372399380,1752624639436,-587.0,0.00023709,2]
[372399381,1752624639447,-495.3,0.00023826,2]
[372399382,1752624639456,-500.0,0.00023878,2]
[372399383,1752624639466,-2223.54731623,0.000239,2]
[372399384,1752624639475,-525.66,0.00024,2]
[372399385,1752624639485,-1000.0,0.00024,2]
[372399386,1752624639494,-1000.0,0.00024,2]
[372399387,1752624639504,-1000.0,0.00024,2]
[372399388,1752624639514,-1000.0,0.00024,2]
[372399389,1752624639523,-718.84,0.00024,2]
[372399390,1752624639534,-495.3,0.000241,2]
[372399391,1752624639543,-215.0738,0.00024308,2]
[372399392,1752624639553,-151.0,0.00024321,7]
[372399393,1752624639562,-495.3,0.00024374,2]
[372399394,1752624639572,-600.0,0.00024498,2]
[372399395,1752624639582,-151.0,0.00024558,7]
[372399396,1752624639591,-495.3,0.00024648,2]
[372399397,1752624639601,-380.0,0.00024658,2]
[372399398,1752624639611,-200.0,0.00024658,15]
[372399399,1752624639621,-151.0,0.00024795,7]
[372399400,1752624639630,-364.0,0.00024885,2]
[372399401,1752624639640,-500.0,0.00024899,10]
[372399402,1752624639650,-364.0,0.00024903,2]
[372399403,1752624639660,-168.0,0.00024913,7]
[372399404,1752624639669,-495.3,0.00024922,2]
[372399406,1752624639679,-500.0,0.0002493,10]
[372399407,1752624639688,-500.0,0.00024947,10]
[372399408,1752624639697,-151.0,0.00024987,2]
[372399409,1752624639706,-500.0,0.00024989,10]
[372399410,1752624639716,-545.347225,0.00024996,8]
[372399411,1752624639725,-500.0,0.00024999,10]
[372399412,1752624639734,-500.0,0.00025005,10]
[372399413,1752624639744,-151.0,0.00025014,2]
[372399414,1752624639753,-151.0,0.00025032,7]
[372399415,1752624639762,-151.0,0.00025042,2]
[372399416,1752624639772,-166.70238856,0.00025069,2]
[372399417,1752624639783,-364.0,0.00025148,2]
[372399418,1752624639793,-495.3,0.00025196,2]
[372399419,1752624639803,-557.48,0.000252,30]
[372399420,1752624639812,-320.92598355,0.000252,2]
[372399421,1752624639822,-285.31612638,0.000252,2]
[372399422,1752624639831,-500.0,0.00025204,10]
[372399423,1752624639840,-168.0,0.00025238,2]
[372399424,1752624639850,-800.0,0.00025238,2]
[372399425,1752624639860,-648.63,0.00025241,3]
[372399426,1752624639869,-320.92598355,0.00025251,2]
[372399427,1752624639879,-151.0,0.0002527,7]
[372399428,1752624639889,-500.0,0.00025273,2]
[372399429,1752624639899,-196859.45893241,0.0002529,2]
[372399431,1752624640197,-829.28017256,0.00025231,10]
[372399435,1752624643266,-460.0,0.00020261,2]
[372399436,1752624643276,-460.0,0.00020535,2]
[372399437,1752624643287,-365.85,0.00020809,2]
[372399477,1752625258409,231.715402,0.00013699,2]
[372399505,1752625546094,-460.0,0.00019178,2]
[372399506,1752625546118,-294.41350842,0.00019348,2]
[372399507,1752625546140,-562.88,0.00019449,2]
[372399508,1752625546161,-460.0,0.00019452,2]
[372399509,1752625546183,-231.715402,0.00020187,2]
[372399510,1752625546204,-345.99661801,0.00020264,2]
[372399511,1752625557083,-114.00338199,0.00020264,2]
[372399512,1752625557105,-300.0,0.00020264,2]
[372399513,1752625557126,-300.0,0.00020264,2]
[372399514,1752625557147,-589.0,0.00020265,2]
[372399515,1752625557168,-1.26081255,0.00020265,2]
[372399519,1752625628213,-163.0,0.0002,2]
[372399520,1752625628234,-195.79208783,0.00020164,2]
[372399521,1752625628259,-7881.90415601,0.00020166,2]
[372399522,1752625628280,-787.62054309,0.00020264,2]
[372399523,1752625629080,-412.37945691,0.00020264,2]
[372399524,1752625629102,-300.0,0.00020264,2]
[372399525,1752625629124,-1198.73918745,0.00020265,2]
[372399526,1752625629152,-277.13303933,0.00020266,2]
[372399527,1752625629172,-460.0,0.00020266,2]
[372399528,1752625629191,-460.0,0.00020266,2]
[372399529,1752625629212,-460.0,0.00020266,2]
[372399530,1752625629232,-460.0,0.00020266,2]
[372399531,1752625629252,-460.0,0.00020266,2]
[372399532,1752625629272,-460.0,0.00020266,2]
[372399533,1752625629292,-460.0,0.00020266,2]
[372399534,1752625629313,-461.17213442,0.00020266,2]
[372399535,1752625629333,-460.5643891,0.00020266,2]
[372399536,1752625629353,-460.0,0.00020266,2]
[372399537,1752625629373,-152.7754235,0.00020266,2]
[372399539,1752625649082,-1054.16185833,0.000189,2]
[372399540,1752625649166,-43.9614991,0.000189,2]
[372399541,1752625649186,-307.2245765,0.00020266,2]
[372399542,1752625649206,-460.0,0.00020266,2]
[372399543,1752625649226,-399.35612754,0.00020266,2]
[372399589,1752625832213,-1201.40624745,0.00019,2]
[372399592,1752625832224,-180.786741,0.00019936,2]
[372399595,1752625832233,-440.76393697,0.0002024,2]
[372399598,1752625832243,-1200.0,0.00020264,2]
[372399600,1752625832252,-300.0,0.00020265,2]
[372399602,1752625832262,-300.0,0.00020265,2]
[372399604,1752625832271,-300.0,0.00020265,2]
[372399605,1752625832280,-300.0,0.00020265,2]
[372399606,1752625832290,-300.0,0.00020265,2]
[372399607,1752625832299,-460.0,0.00020266,2]
[372399608,1752625832309,-238.5,0.00020266,2]
[372399609,1752625832318,-460.0,0.00020266,2]
[372399610,1752625832328,-460.0,0.00020266,2]
[372399611,1752625832338,-460.0,0.00020266,2]
[372399612,1752625832347,-460.0,0.00020266,2]
[372399613,1752625832356,-460.0,0.00020266,2]
[372399614,1752625832366,-460.0,0.00020266,2]
[372399615,1752625832376,-460.0,0.00020266,2]
[372399616,1752625832385,-460.0,0.00020266,2]
[372399617,1752625832397,-460.0,0.00020266,2]
[372399618,1752625832407,-460.0,0.00020266,2]
[372399619,1752625832417,-460.0,0.00020266,2]
[372399620,1752625832426,-460.0,0.00020266,2]
[372399621,1752625832437,-413.2641482,0.00020266,2]
[372399622,1752625832449,-46.7358518,0.00020266,2]
[372399623,1752625832459,-460.0,0.00020266,2]
[372399624,1752625832469,-460.0,0.00020266,2]
[372399625,1752625832480,-460.0,0.0002054,2]
[372399626,1752625832490,-226.60121521,0.00020808,2]
[372399627,1752625832499,-460.0,0.00020808,2]
[372399628,1752625832509,-108.03170609,0.00020808,2]
[372399629,1752625832523,-351.96829391,0.00020808,2]
[372399630,1752625832532,-460.0,0.00020816,2]
[372399631,1752625832543,-460.0,0.00020816,2]
[372399632,1752625832552,-460.0,0.00020816,2]
[372399633,1752625832562,-569.54,0.00020816,2]
[372399634,1752625832571,-460.0,0.00020816,2]
[372399635,1752625832583,-460.0,0.00020816,2]
[372399636,1752625832592,-547.53634726,0.00020816,2]
[372399637,1752625832602,-238.77915546,0.00020816,2]
[372399638,1752625832611,-460.0,0.00020816,2]
[372399639,1752625832621,-460.0,0.00020816,2]
[372399640,1752625832630,-460.0,0.00020816,2]
[372399641,1752625832640,-492.09,0.00020816,2]
[372399642,1752625832649,-460.0,0.00020816,2]
[372399643,1752625832660,-206.7,0.00020816,2]
[372399644,1752625832670,-585.44506512,0.00020816,2]
[372399645,1752625832679,-460.0,0.00020816,2]
[372399646,1752625832689,-460.0,0.00020816,2]
[372399647,1752625832698,-460.0,0.00020816,2]
[372399648,1752625832707,-442.52,0.00020816,2]
[372399649,1752625832717,-460.0,0.00020816,2]
[372399650,1752625832727,-512.17,0.00020816,2]
[372399651,1752625832737,-460.0,0.00020817,2]
[372399652,1752625832746,-460.0,0.00020817,2]
[372399653,1752625832755,-460.0,0.00020817,2]
[372399654,1752625832767,-460.0,0.00020817,2]
[372399655,1752625832777,-460.0,0.00020817,2]
[372399656,1752625832787,-460.0,0.00020817,2]
[372399657,1752625832796,-460.0,0.00020817,2]
[372399658,1752625832806,-100.91638043,0.00020817,2]
[372399673,1752625838174,-359.08361957,0.00020817,2]
[372399674,1752625838185,-460.0,0.00020817,2]
[372399675,1752625838194,-460.0,0.00020817,2]
[372399676,1752625838204,-380.41127685,0.00020817,2]
[372399677,1752625838213,-460.0,0.00020817,2]
[372399678,1752625838223,-558.4745144,0.00020899,2]
[372399679,1752625838232,-180.69286302,0.00020997,2]
[372399680,1752625838242,-500.0,0.00020997,2]
[372399681,1752625838251,-158.62697922,0.00020997,2]
[372399682,1752625838261,-184.54689713,0.00020997,2]
[372399683,1752625838271,-500.0,0.00020997,2]
[372399684,1752625838281,-500.0,0.00020997,2]
[372399685,1752625838291,-500.0,0.00020997,2]
[372399686,1752625838303,-500.0,0.00020997,2]
[372399687,1752625838312,-500.0,0.00020997,2]
[372399688,1752625838322,-279.64362609,0.00020997,2]
[372399689,1752625838332,-500.0,0.00020997,2]
[372399690,1752625838342,-500.0,0.00020997,2]
[372399691,1752625838359,-500.0,0.00020997,2]
[372399692,1752625838369,-460.0,0.00020999,2]
[372399693,1752625838379,-460.0,0.00020999,2]
[372399694,1752625838388,-267.82916642,0.00020999,2]
[372399695,1752625838398,-460.0,0.00020999,2]
[372399696,1752625838417,-460.0,0.00020999,2]
[372399697,1752625838428,-340.35743034,0.00020999,2]
[372399698,1752625838437,-460.0,0.00020999,2]
[372399699,1752625838447,-460.0,0.00020999,2]
[372399700,1752625838456,-428.47380345,0.00020999,2]
[372399701,1752625838470,-31.52619655,0.00020999,2]
[372399702,1752625838479,-414.72808135,0.00020999,2]
[372399703,1752625838491,-45.27191865,0.00020999,2]